fUST/lending_fUST_20260411
["ID","MTS","AMOUNT","RATE_DAILY","PERIOD"]
[420235734,1775836862036,-2656.11797688,0.00013292,2]
[420235781,1775837432626,-4943.45283108,0.00012897,2]
[420235783,1775837432637,-56.54716892,0.00012897,2]
[420235786,1775837432655,-605.0,0.00013027,2]
[420235788,1775837432665,-148.01469822,0.00013694,2]
[420236039,1775837438632,-151.98530178,0.00013694,2]
[420236041,1775837438667,-300.0,0.00013694,2]
[420236043,1775837438690,-300.0,0.00013694,2]
[420236045,1775837438721,-300.0,0.00013694,2]
[420236046,1775837438737,-300.0,0.00013694,2]
[420236048,1775837438747,-300.0,0.00013694,2]
[420236051,1775837438759,-300.0,0.00013694,2]
[420236054,1775837438779,-300.0,0.00013694,2]
[420236057,1775837438788,-300.0,0.00013694,2]
[420236059,1775837438817,-300.0,0.00013694,2]
[420236061,1775837438828,-300.0,0.00013694,2]
[420236063,1775837438839,-300.0,0.00013694,2]
[420236064,1775837438862,-300.0,0.00013694,2]
[420236067,1775837438872,-300.0,0.00013694,2]
[420236069,1775837438892,-300.0,0.00013694,2]
[420236071,1775837438911,-615.0,0.00013694,2]
[420236073,1775837438921,-505.23720602,0.00013699,2]
[420236080,1775837439083,-473.57376399,0.00013699,2]
[420236128,1775837443820,-21.18902999,0.00013699,2]
[420236130,1775837443829,-640.361,0.00014924,2]
[420236132,1775837443839,-157.96559326,0.00014924,2]
[420236474,1775838639462,-1289.70641936,0.00012514,2]
[420236475,1775838639487,-3710.29358064,0.00012514,2]
[420236476,1775838639501,-5000.0,0.0001264,2]
[420236477,1775838639514,-901.50773175,0.00013699,2]
[420236478,1775838639535,-98.49226825,0.00013699,2]
[420236479,1775838639554,-4136.2113175,0.00013967,2]
[420236480,1775838639590,-11244.1622825,0.00013967,2]
[420236481,1775838639617,-511.0,0.00014,2]
[420236482,1775838639644,-3134.64161624,0.00014075,2]
[420236483,1775838639666,-531.81846345,0.00014154,2]
[420236484,1775838639912,-5428.65128725,0.00014154,2]
[420236485,1775838639922,-1510.51335498,0.00014175,2]
[420236486,1775838639934,-1530.18372848,0.0001445,2]
[420236487,1775838639947,-3488.26434393,0.00014743,2]
[420236488,1775838639962,-7275.52469552,0.00014843,2]
[420236489,1775838639973,-3134.64161617,0.00014907,2]
[420236490,1775838639986,-160.0,0.00015,2]
[420236491,1775838640001,-1000.0,0.00015021,2]
[420236492,1775838640012,-732.092,0.00015087,2]
[420236493,1775838640023,-1393.787,0.00015087,2]
[420236494,1775838640038,-168.11639324,0.00015087,2]
[420236495,1775838640049,-184.0,0.00015087,2]
[420236496,1775838640064,-441.0,0.00015087,2]
[420236497,1775838640080,-3134.64161617,0.00015739,2]
[420236498,1775838640093,-325.61919141,0.00015934,2]
[420236499,1775838640104,-2150.738,0.00015934,2]
[420236500,1775838640117,-302.0,0.00016,2]
[420236501,1775838640131,-3789.52827192,0.00016137,2]
[420236502,1775838640147,-6964.34182322,0.00016198,2]
[420236503,1775838640160,-847.93,0.00016227,3]
[420236504,1775838640172,-423.97,0.00016227,3]
[420236505,1775838640189,-211.98,0.00016227,3]
[420236506,1775838640205,-635.98,0.00016227,3]
[420236507,1775838640215,-455.3409326,0.00016228,2]
[420236508,1775838640234,-455.4746423,0.0001623,2]
[420236509,1775838640250,-715.47,0.00016237,2]
[420236510,1775838640259,-715.47,0.00016237,2]
[420236511,1775838640278,-715.47,0.00016237,2]
[420236512,1775838640305,-715.47,0.00016237,2]
[420236513,1775838640333,-715.47,0.00016237,2]
[420236514,1775838640347,-715.47,0.00016237,2]
[420236515,1775838640364,-80.92135939,0.00016237,2]
[420236611,1775838641735,-634.54864061,0.00016237,2]
[420236613,1775838641757,-715.47,0.00016237,2]
[420236616,1775838641771,-715.47,0.00016237,2]
[420236618,1775838641798,-962.17,0.00016237,2]
[420236620,1775838641812,-47116.26575903,0.00016238,2]
[420236911,1775838646137,-6322.11739175,0.00016238,2]
[420236937,1775838646853,-3469.44627698,0.00016238,2]
[420236941,1775838646995,-451.78571872,0.00016238,2]
[420236990,1775838884183,8774.3,0.0001,10]
[420237084,1775839838333,-300.0,0.00011994,22]
[420237085,1775839838362,-5000.0,0.00013027,2]
[420237086,1775839838382,-607.0,0.00013159,2]
[420237087,1775839838413,-1000.0,0.00013699,2]
[420237088,1775839838432,-1513.21276932,0.00014699,2]
[420237089,1775839838451,-1000.0,0.000152,2]
[420237090,1775839838488,-1000.0,0.000152,3]
[420237091,1775839838509,-616.73101204,0.00015323,2]
[420237092,1775839838546,-160.0,0.0001543,2]
[420237093,1775839838557,-3590.34571091,0.00015798,2]
[420237094,1775839838570,-1006.52,0.000158,4]
[420237095,1775839838589,-1959.15101015,0.0001581,2]
[420237096,1775839838602,-500.0,0.00015819,2]
[420237097,1775839838632,-227.07518285,0.00015819,2]
[420237098,1775839838642,-500.0,0.00015819,2]
[420237099,1775839838671,-401.12346616,0.00015819,2]
[420237100,1775839838688,-500.0,0.00015819,2]
[420237101,1775839838698,-500.0,0.00015819,2]
[420237102,1775839838708,-500.0,0.00015819,2]
[420237103,1775839838719,-500.0,0.00015819,2]
[420237104,1775839838729,-500.0,0.00015819,2]
[420237105,1775839838741,-500.0,0.00015819,2]
[420237106,1775839838751,-500.0,0.00015819,2]
[420237107,1775839838762,-500.0,0.00015819,2]
[420237108,1775839838777,-500.0,0.00015819,2]
[420237109,1775839838792,-277.41114954,0.00015819,2]
[420237110,1775839838802,-152.98605235,0.00015819,2]
[420237111,1775839838815,-500.0,0.00015819,2]
[420237112,1775839838837,-500.0,0.00015819,2]
[420237113,1775839838846,-500.0,0.00015819,2]
[420237114,1775839838857,-501.81754888,0.00015819,2]
[420237115,1775839838887,-500.0,0.00015819,2]
[420237116,1775839838898,-500.0,0.00015819,2]
[420237117,1775839838922,-500.0,0.00015819,2]
[420237118,1775839838933,-539.63530805,0.00015819,2]
[420237119,1775839838943,-160.42306948,0.00015819,2]
[420237120,1775839838953,-27489.42466332,0.0001582,2]
[420237121,1775839838977,-556243.31456181,0.0001582,2]
[420237281,1775839843044,-386.0,0.00013027,2]
[420237283,1775839843053,-1116267.26077487,0.0001582,2]
[420237285,1775839843063,-453.4,0.0001591,3]
[420237287,1775839843071,-226.7,0.0001591,3]
[420237289,1775839843087,-680.15,0.0001591,3]
[420237291,1775839843098,-200.0,0.00015919,2]
[420237293,1775839843119,-821067.02084152,0.0001592,2]
[420237300,1775839843293,-20300.0,0.0001592,2]
[420237402,1775839846058,-16415.81234573,0.0001592,2]
[420237403,1775839846225,-1365.08688612,0.0001592,2]
[420237406,1775839977914,1039.3,0.0001,10]
[420237417,1775840442959,-1151.0,0.00011962,2]
[420237446,1775840538706,50012.06226316,7.857e-05,2]
[420237735,1775841028345,-474.3,9.507e-05,2]
[420237745,1775841032768,-782.80028165,9.507e-05,2]
[420237902,1775841043788,-3742.89971835,9.507e-05,2]
[420237903,1775841043799,-300.0,9.7e-05,2]
[420237904,1775841043809,-472.05,0.0001,2]
[420237905,1775841043824,-3800.0,0.00012205,2]
[420237906,1775841043835,-267.91,0.00012329,2]
[420237907,1775841043845,-223.26,0.00012329,2]
[420237908,1775841043855,-186.05,0.00012329,2]
[420237909,1775841043865,-155.04,0.00012329,2]
[420237910,1775841043875,-775.25,0.00012329,2]
[420237912,1775841043886,-151.0,0.00012919,2]
[420237914,1775841043896,-346.24113212,0.00013699,2]
[420237924,1775841046404,-653.75886788,0.00013699,2]
[420237926,1775841046421,-209.3987628,0.00013793,2]
[420237928,1775841046431,-736.3937927,0.00014085,2]
[420237930,1775841046451,-2202.33080633,0.00014175,2]
[420237931,1775841046467,-181.66,0.00014646,2]
[420237932,1775841046477,-1714.25713389,0.00014745,2]
[420237933,1775841046487,-3231.31113981,0.000148,2]
[420237934,1775841046502,-242.12707099,0.00014844,2]
[420237935,1775841046513,-350.0,0.00014844,2]
[420237936,1775841046523,-234.45211535,0.00014844,2]
[420237937,1775841046533,-500.0,0.00014844,2]
[420237938,1775841046542,-280.78642631,0.00014844,2]
[420237939,1775841046554,-158.952628,0.00014844,2]
[420237940,1775841046563,-500.0,0.00014844,2]
[420237941,1775841046573,-500.0,0.00014844,2]
[420237942,1775841046582,-500.0,0.00014844,2]
[420237943,1775841046593,-189.18780468,0.00014844,2]
[420237944,1775841046602,-500.0,0.00014844,2]
[420237945,1775841046613,-500.0,0.00014844,2]
[420237946,1775841046622,-500.0,0.00014844,2]
[420237947,1775841046632,-500.0,0.00014844,2]
[420237948,1775841046644,-500.0,0.00014844,2]
[420237949,1775841046654,-586.89376774,0.00014844,2]
[420237950,1775841046664,-510.82563742,0.00014844,2]
[420237951,1775841046674,-27715.52338793,0.00014845,2]
[420237952,1775841046685,-3831.57437946,0.00014845,2]
[420238192,1775841874306,151.0,8e-05,2]
[420238252,1775842224882,-1865.69856189,9.9e-05,2]
[420238308,1775842232354,-1587.44187843,9.9e-05,2]
[420238374,1775842238915,-704.220022,9.9e-05,2]
[420238389,1775842239131,-569.64124881,9.9e-05,2]
[420238440,1775842245290,-272.99828887,9.9e-05,2]
[420238441,1775842245308,-559.0,9.9e-05,2]
[420238442,1775842245322,-223.99,0.0001,2]
[420238443,1775842245333,-2349.4,0.00011,2]
[420238444,1775842245350,-176.91,0.00012329,2]
[420238445,1775842245371,-390.45,0.00012329,2]
[420238446,1775842245382,-325.38,0.00012329,2]
[420238447,1775842245407,-271.15,0.00012329,2]
[420238448,1775842245418,-225.95,0.00012329,2]
[420238449,1775842245438,-188.3,0.00012329,2]
[420238450,1775842245476,-156.91,0.00012329,2]
[420238451,1775842245486,-784.59,0.00012329,2]
[420238452,1775842245512,-200.00000001,0.00012727,2]
[420238453,1775842245526,-4046.0830613,0.00013661,2]
[420238454,1775842245551,-389.0628006,0.00013699,2]
[420238456,1775842245569,-1000.0,0.00013699,2]
[420238457,1775842245581,-808.26073241,0.00014428,2]
[420238458,1775842245595,-3229.80988671,0.00014428,2]
[420238459,1775842245613,-196.3945489,0.0001462,2]
[420238460,1775842245627,-195.9574178,0.0001462,2]
[420238461,1775842245637,-160.0,0.00015,2]
[420238462,1775842245649,-500.0,0.00015044,2]
[420238463,1775842245664,-500.0,0.00015044,2]
[420238464,1775842245673,-532.43146327,0.00015044,2]
[420238465,1775842245685,-514.11648075,0.00015044,2]
[420238466,1775842245700,-123428.28643328,0.00015045,2]
[420238467,1775842245719,-18009.97147548,0.00015045,2]
[420238468,1775842245734,-58057.80434267,0.00015045,2]
[420238469,1775842245748,-257.85,0.000151,2]
[420238470,1775842245765,-359.60158039,0.00015187,2]
[420238471,1775842245775,-1438.40632156,0.00015187,2]
[420238472,1775842245786,-3233.17780929,0.00015187,2]
[420238473,1775842245798,-6833.4046343,0.00015205,2]
[420238474,1775842245817,-715.084156,0.00015304,2]
[420238475,1775842245829,-325.0882202,0.00015375,2]
[420238476,1775842245846,-184.0,0.00015395,2]
[420238477,1775842245859,-441.0,0.00015395,2]
[420238478,1775842245873,-3147.0,0.00015693,2]
[420238480,1775842245891,-494.0,0.00015693,2]
[420238481,1775842245907,-154.4258518,0.00015807,2]
[420238482,1775842245934,-178.9738237,0.00015807,2]
[420238483,1775842245947,-800.0,0.00015866,7]
[420238484,1775842245969,-800.0,0.00015866,7]
[420238485,1775842245993,-800.0,0.00015866,7]
[420238486,1775842246003,-800.0,0.00015866,7]
[420238487,1775842246035,-800.0,0.00015866,7]
[420238488,1775842246045,-800.0,0.00015866,7]
[420238489,1775842246077,-800.0,0.00015866,7]
[420238490,1775842246088,-800.0,0.00015866,7]
[420238491,1775842246116,-800.0,0.00015866,7]
[420238492,1775842246158,-800.0,0.00015866,7]
[420238493,1775842246177,-800.0,0.00015866,7]
[420238494,1775842246189,-800.0,0.00015866,7]
[420238495,1775842246202,-800.0,0.00015866,7]
[420238496,1775842246230,-800.0,0.00015866,7]
[420238497,1775842246246,-800.0,0.00015866,7]
[420238498,1775842246267,-800.0,0.00015866,7]
[420238499,1775842246314,-800.0,0.00015866,7]
[420238500,1775842246355,-800.0,0.00015866,7]
[420238501,1775842246371,-800.0,0.00015866,7]
[420238502,1775842246390,-800.0,0.00015866,7]
[420238503,1775842246416,-800.0,0.00015866,7]
[420238504,1775842246453,-800.0,0.00015866,7]
[420238505,1775842246466,-800.0,0.00015866,7]
[420238506,1775842246492,-800.0,0.00015866,7]
[420238507,1775842246505,-800.0,0.00015866,7]
[420238508,1775842246520,-800.0,0.00015866,7]
[420238509,1775842246537,-800.0,0.00015866,7]
[420238510,1775842246549,-800.0,0.00015866,7]
[420238511,1775842246571,-800.0,0.00015866,7]
[420238512,1775842246582,-800.0,0.00015866,7]
[420238513,1775842246612,-800.0,0.00015866,7]
[420238514,1775842246633,-800.0,0.00015866,7]
[420238515,1775842246645,-800.0,0.00015866,7]
[420238516,1775842246669,-800.0,0.00015866,7]
[420238518,1775842246679,-800.0,0.00015866,7]
[420238519,1775842246690,-800.0,0.00015866,7]
[420238520,1775842246706,-800.0,0.00015866,7]
[420238521,1775842246722,-800.0,0.00015866,7]
[420238522,1775842246733,-800.0,0.00015866,7]
[420238523,1775842246743,-800.0,0.00015866,7]
[420238524,1775842246758,-800.0,0.00015866,7]
[420238525,1775842246769,-800.0,0.00015866,7]
[420238526,1775842246790,-800.0,0.00015866,7]
[420238527,1775842246801,-800.0,0.00015866,7]
[420238528,1775842246816,-800.0,0.00015866,7]
[420238529,1775842246835,-800.0,0.00015866,7]
[420238530,1775842246850,-800.0,0.00015866,7]
[420238531,1775842246866,-800.0,0.00015866,7]
[420238532,1775842246879,-800.0,0.00015866,7]
[420238533,1775842246895,-800.0,0.00015866,7]
[420238534,1775842246922,-800.0,0.00015866,7]
[420238536,1775842246934,-800.0,0.00015866,7]
[420238538,1775842246991,-800.0,0.00015866,7]
[420238540,1775842247012,-800.0,0.00015866,7]
[420238542,1775842247035,-800.0,0.00015866,7]
[420238544,1775842247048,-800.0,0.00015866,7]
[420238546,1775842247067,-800.0,0.00015866,7]
[420238548,1775842247085,-800.0,0.00015866,7]
[420238550,1775842247098,-800.0,0.00015866,7]
[420238552,1775842247137,-800.0,0.00015866,7]
[420238555,1775842247148,-800.0,0.00015866,7]
[420238557,1775842247172,-800.0,0.00015866,7]
[420238559,1775842247182,-800.0,0.00015866,7]
[420238561,1775842247194,-800.0,0.00015866,7]
[420238563,1775842247210,-800.0,0.00015866,7]
[420238564,1775842247224,-800.0,0.00015866,7]
[420238567,1775842247234,-800.0,0.00015866,7]
[420238569,1775842247247,-800.0,0.00015866,7]
[420238571,1775842247259,-800.0,0.00015866,7]
[420238573,1775842247270,-800.0,0.00015866,7]
[420238575,1775842247280,-800.0,0.00015866,7]
[420238577,1775842247290,-800.0,0.00015866,7]
[420238579,1775842247305,-800.0,0.00015866,7]
[420238581,1775842247316,-800.0,0.00015866,7]
[420238583,1775842247326,-800.0,0.00015866,7]
[420238585,1775842247342,-800.0,0.00015866,7]
[420238587,1775842247354,-800.0,0.00015866,7]
[420238589,1775842247372,-800.0,0.00015866,7]
[420238591,1775842247382,-800.0,0.00015866,7]
[420238593,1775842247393,-800.0,0.00015866,7]
[420238608,1775842247569,-800.0,0.00015866,7]
[420238609,1775842247638,-800.0,0.00015866,7]
[420238610,1775842247666,-715.084156,0.00015948,2]
[420238611,1775842247679,-556.54203402,0.00015977,2]
[420238612,1775842247705,-326.79560659,0.00015987,2]
[420238613,1775842247715,-238.1,0.00016,2]
[420238614,1775842247735,-1482.59,0.00016,2]
[420238616,1775842247753,-504.3592881,0.00016058,5]
[420238618,1775842247766,-196.3797719,0.00016185,2]
[420238620,1775842247784,-500.0,0.00016187,2]
[420238621,1775842247800,-578.20924308,0.00016187,2]
[420238622,1775842247814,-2150.738,0.00016187,2]
[420238623,1775842247832,-537.6845,0.00016187,2]
[420238624,1775842247842,-915.92,0.0001623,2]
[420238625,1775842247853,-2084.17,0.0001623,2]
[420238626,1775842247866,-2073.46,0.0001623,2]
[420238627,1775842247881,-2471.55,0.0001623,2]
[420238628,1775842247891,-697.19,0.00016238,2]
[420238629,1775842247902,-1352.92,0.00016238,2]
[420238630,1775842247915,-1437.72,0.00016238,2]
[420238631,1775842247926,-264.16679955,0.00016242,2]
[420238632,1775842247936,-2871.66694846,0.000163,2]
[420238633,1775842247946,-3028.47615022,0.000164,2]
[420238634,1775842247957,-153.0,0.00016433,2]
[420238635,1775842247967,-153.0,0.00016433,2]
[420238636,1775842247976,-153.0,0.00016433,2]
[420238637,1775842247991,-153.0,0.00016433,2]
[420238638,1775842248001,-153.0,0.00016433,2]
[420238639,1775842248011,-153.0,0.00016433,2]
[420238640,1775842248023,-153.0,0.00016433,2]
[420238641,1775842248035,-153.0,0.00016433,2]
[420238642,1775842248045,-276.0,0.00016433,2]
[420238643,1775842248055,-1447.85,0.00016438,2]
[420238644,1775842248066,-1649.8568,0.00016438,2]
[420238645,1775842248086,-500.60891618,0.00016438,2]
[420238646,1775842248097,-510.3,0.00016438,2]
[420238647,1775842248113,-500.79516122,0.00016438,2]
[420238648,1775842248126,-505.62477229,0.00016438,2]
[420238649,1775842248135,-501.29880181,0.00016438,2]
[420238650,1775842248154,-500.0,0.00016438,2]
[420238651,1775842248165,-500.0,0.00016438,2]
[420238652,1775842248193,-500.0,0.00016438,2]
[420238653,1775842248203,-579.77,0.00016438,2]
[420238654,1775842248224,-648.37,0.00016438,2]
[420238655,1775842248248,-552.89487883,0.00016438,2]
[420238656,1775842248258,-500.88134935,0.00016438,2]
[420238657,1775842248267,-500.77896907,0.00016438,2]
[420238658,1775842248285,-780.77,0.00016438,2]
[420238659,1775842248296,-500.0,0.00016438,2]
[420238660,1775842248305,-500.68270351,0.00016438,2]
[420238661,1775842248318,-500.61110105,0.00016438,2]
[420238662,1775842248330,-572.41923129,0.00016438,2]
[420238663,1775842248342,-500.0,0.00016438,2]
[420238664,1775842248360,-511.14,0.00016438,2]
[420238665,1775842248372,-500.63274299,0.00016438,2]
[420238666,1775842248382,-255.4695619,0.00016438,2]
[420238667,1775842248394,-445.0,0.00016438,2]
[420238668,1775842248409,-500.0,0.00016438,2]
[420238669,1775842248430,-500.0,0.00016438,2]
[420238670,1775842248440,-604.32,0.00016438,2]
[420238671,1775842248455,-613.83,0.00016438,2]
[420238672,1775842248468,-500.0,0.00016438,2]
[420238673,1775842248478,-500.0,0.00016438,2]
[420238674,1775842248493,-500.0,0.00016438,2]
[420238675,1775842248507,-500.0,0.00016438,2]
[420238676,1775842248529,-500.67666775,0.00016438,2]
[420238677,1775842248547,-502.44324979,0.00016438,2]
[420238678,1775842248565,-508.91499492,0.00016438,2]
[420238679,1775842248602,-500.84097635,0.00016438,2]
[420238680,1775842248617,-500.55144716,0.00016438,2]
[420238681,1775842248630,-500.0,0.00016438,2]
[420238683,1775842248650,-554.07893789,0.00016438,2]
[420238684,1775842248685,-500.0,0.00016438,2]
[420238685,1775842248707,-502.45057877,0.00016438,2]
[420238686,1775842248718,-500.85064786,0.00016438,2]
[420238687,1775842248742,-627.02533029,0.00016438,2]
[420238688,1775842248755,-518.92920512,0.00016438,2]
[420238689,1775842248778,-500.0,0.00016438,2]
[420238690,1775842248804,-500.0,0.00016438,2]
[420238691,1775842248816,-500.0,0.00016438,2]
[420238692,1775842248837,-500.0,0.00016438,2]
[420238693,1775842248849,-490.0,0.00016438,2]
[420238694,1775842248860,-503.81202754,0.00016438,2]
[420238696,1775842248873,-500.55424306,0.00016438,2]
[420238697,1775842248890,-630.82204227,0.00016438,2]
[420238698,1775842248900,-500.0,0.00016438,2]
[420238699,1775842248918,-500.0,0.00016438,2]
[420238700,1775842248928,-500.0,0.00016438,2]
[420238701,1775842248938,-503.10638939,0.00016438,2]
[420238702,1775842248957,-507.74114023,0.00016438,2]
[420238703,1775842248972,-502.29457048,0.00016438,2]
[420238704,1775842248981,-1055.18,0.00016438,2]
[420238705,1775842248992,-500.0,0.00016438,2]
[420238706,1775842249002,-500.0,0.00016438,2]
[420238707,1775842249016,-2336.22,0.00016438,2]
[420238708,1775842249025,-596.96,0.00016438,2]
[420238709,1775842249036,-500.0,0.00016438,2]
[420238710,1775842249046,-500.0,0.00016438,2]
[420238711,1775842249057,-500.0,0.00016438,2]
[420238712,1775842249067,-500.0,0.00016438,2]
[420238713,1775842249078,-500.0,0.00016438,2]
[420238714,1775842249094,-500.0,0.00016438,2]
[420238715,1775842249107,-500.0,0.00016438,2]
[420238716,1775842249117,-500.0,0.00016438,2]
[420238717,1775842249132,-1262.09,0.00016438,2]
[420238718,1775842249142,-500.0,0.00016438,2]
[420238719,1775842249154,-500.0,0.00016438,2]
[420238720,1775842249170,-500.0,0.00016438,2]
[420238721,1775842249180,-500.0,0.00016438,2]
[420238722,1775842249192,-558.79,0.00016438,2]
[420238723,1775842249205,-500.0,0.00016438,2]
[420238724,1775842249229,-500.0,0.00016438,2]
[420238725,1775842249238,-500.0,0.00016438,2]
[420238726,1775842249255,-517.7,0.00016438,2]
[420238727,1775842249286,-500.0,0.00016438,2]
[420238728,1775842249296,-500.0,0.00016438,2]
[420238729,1775842249317,-500.0,0.00016438,2]
[420238730,1775842249326,-500.0,0.00016438,2]
[420238731,1775842249338,-500.0,0.00016438,2]
[420238732,1775842249355,-500.0,0.00016438,2]
[420238733,1775842249365,-500.0,0.00016438,2]
[420238734,1775842249382,-500.0,0.00016438,2]
[420238735,1775842249398,-500.0,0.00016438,2]
[420238736,1775842249410,-500.0,0.00016438,2]
[420238737,1775842249432,-500.0,0.00016438,2]
[420238738,1775842249448,-500.0,0.00016438,2]
[420238739,1775842249457,-500.0,0.00016438,2]
[420238740,1775842249471,-500.0,0.00016438,2]
[420238741,1775842249485,-500.0,0.00016438,2]
[420238742,1775842249495,-3028.47615022,0.000165,2]
[420238743,1775842249505,-715.084156,0.00016592,2]
[420238744,1775842249515,-3028.47615022,0.000166,2]
[420238745,1775842249540,-194.01,0.00016646,7]
[420238746,1775842249550,-232.548,0.0001666,2]
[420238747,1775842249560,-3028.47615022,0.000167,2]
[420238748,1775842249581,-1447.85,0.00016712,2]
[420238749,1775842249599,-1649.8568,0.00016712,2]
[420238750,1775842249609,-500.0,0.00016712,2]
[420238751,1775842249624,-500.0,0.00016712,2]
[420238752,1775842249639,-420.23235869,0.00016712,2]
[420238753,1775842249648,-780.77,0.00016712,2]
[420238754,1775842249661,-500.0,0.00016712,2]
[420238755,1775842249673,-500.0,0.00016712,2]
[420238756,1775842249686,-511.14,0.00016712,2]
[420238757,1775842249696,-170.57,0.00016712,2]
[420238758,1775842249723,-500.0,0.00016712,2]
[420238759,1775842249733,-500.0,0.00016712,2]
[420238760,1775842249767,-500.0,0.00016712,2]
[420238761,1775842249777,-306.83,0.00016712,2]
[420238762,1775842249799,-500.0,0.00016712,2]
[420238763,1775842249816,-406.12,0.00016712,2]
[420238764,1775842249830,-329.59,0.00016712,2]
[420238765,1775842249861,-500.0,0.00016712,2]
[420238766,1775842249898,-397.59,0.00016712,2]
[420238767,1775842249909,-485.21,0.00016712,2]
[420238768,1775842249955,-500.0,0.00016712,2]
[420238769,1775842249973,-331.37,0.00016712,2]
[420238770,1775842249995,-1055.18,0.00016712,2]
[420238771,1775842250014,-500.0,0.00016712,2]
[420238772,1775842250024,-500.0,0.00016712,2]
[420238773,1775842250035,-2336.22,0.00016712,2]
[420238774,1775842250050,-596.96,0.00016712,2]
[420238775,1775842250066,-500.0,0.00016712,2]
[420238776,1775842250075,-500.0,0.00016712,2]
[420238777,1775842250085,-500.0,0.00016712,2]
[420238778,1775842250103,-500.0,0.00016712,2]
[420238779,1775842250113,-500.0,0.00016712,2]
[420238780,1775842250123,-500.0,0.00016712,2]
[420238781,1775842250136,-500.0,0.00016712,2]
[420238782,1775842250146,-500.0,0.00016712,2]
[420238783,1775842250156,-1262.09,0.00016712,2]
[420238784,1775842250165,-500.0,0.00016712,2]
[420238785,1775842250175,-500.0,0.00016712,2]
[420238786,1775842250190,-500.0,0.00016712,2]
[420238787,1775842250199,-500.0,0.00016712,2]
[420238788,1775842250211,-558.79,0.00016712,2]
[420238789,1775842250223,-500.0,0.00016712,2]
[420238790,1775842250232,-500.0,0.00016712,2]
[420238791,1775842250248,-500.0,0.00016712,2]
[420238792,1775842250257,-517.7,0.00016712,2]
[420238793,1775842250266,-500.0,0.00016712,2]
[420238794,1775842250277,-500.0,0.00016712,2]
[420238795,1775842250291,-500.0,0.00016712,2]
[420238796,1775842250300,-500.0,0.00016712,2]
[420238797,1775842250310,-391.67,0.00016712,2]
[420238798,1775842250322,-278.79104592,0.00016712,2]
[420238799,1775842250335,-500.0,0.00016712,2]
[420238800,1775842250345,-500.0,0.00016712,2]
[420238801,1775842250356,-500.0,0.00016712,2]
[420238802,1775842250369,-500.0,0.00016712,2]
[420238803,1775842250378,-500.0,0.00016712,2]
[420238804,1775842250387,-500.0,0.00016712,2]
[420238805,1775842250409,-500.0,0.00016712,2]
[420238806,1775842250418,-500.0,0.00016712,2]
[420238807,1775842250446,-500.0,0.00016712,2]
[420238808,1775842250456,-2230.315306,0.00016735,2]
[420238809,1775842250480,-820.0,0.00016746,2]
[420238810,1775842250493,-820.0,0.00016746,2]
[420238811,1775842250522,-600.0,0.00016766,2]
[420238812,1775842250540,-3028.47615022,0.000168,2]
[420238813,1775842250572,-3028.47615022,0.000169,2]
[420238814,1775842250583,-500.0,0.00016915,2]
[420238815,1775842250596,-1305.87524393,0.0001694,2]
[420238816,1775842250638,-1447.85,0.00016986,2]
[420238817,1775842250655,-1649.8568,0.00016986,2]
[420238818,1775842250685,-500.0,0.00016986,2]
[420238819,1775842250699,-500.0,0.00016986,2]